{"text_format":"2","workbook":"xlsx","n_sheets":1,"sheets":["Munka1"],"not_rendered":{"charts":0,"images":0,"macros":0,"external_links":0,"defined_names":0,"comments":0,"pivot_tables":0},"unopened":[],"bounds":{"document_bytes":16777216,"sheet_cells":100000,"run_cost":"one","rows_first":2000,"rows_last":500,"rows_between":2000,"halvings":0,"cell_chars":16384,"cell_head_chars":4096},"cells_cut":0,"cells_raw":0,"read":"whole","date_system":"1900"}

{"sheet":"Munka1","index":0,"n_rows":14,"n_cols":11,"rows_kept":14,"cut":false,"hidden":false,"merged":[]}
["Sorszám","SZOTE szám","Készlet megnevezése","Típus","Tevékenység","Gyakoriság (alkalom/év)","Nettó egységár (év/Ft)","Nettó összár (év/Ft)","ÁFA","Bruttó összár (év/Ft)","Bruttó összár (3év/Ft)"]
[1,506998,"Kriosztát mikrotóm","Leica Cryocut 1800","Karbantartás",1,null,{"$f":"G2*I2","v":0},1.27,{"$f":"H2*I2","v":0},{"$f":"J2*3","v":0}]
[2,504624,"Ultramikrotom","Leica UCS","Karbantartás",1,null,{"$f":"G3*I3","v":0},1.27,{"$f":"H3*I3","v":0},{"$f":"J3*3","v":0}]
[3,522857,"Beágyazó automata","Leica EM TP","Karbantartás",1,null,{"$f":"G4*I4","v":0},1.27,0,0]
[4,59431,"Rotációs mikrotóm","Shandon 325","Karbantartás",1,null,0,1.27,0,0]
[5,52377,"Rotációs mikrotóm","Shandon 325","Karbantartás",1,null,0,1.27,0,0]
[6,59941,"Rotációs mikrotóm","Shandon 325","Karbantartás",1,null,0,1.27,0,0]
[7,51773,"Rotációs mikrotóm","Shandon 325","Karbantartás",1,null,0,1.27,0,0]
[8,50633,"Rotációs mikrotóm","Shandon 325","Karbantartás",1,null,0,1.27,0,0]
[9,51772,"Rotációs mikrotóm","Shandon 325","Karbantartás",1,null,0,1.27,0,0]
[10,59940,"Rotációs mikrotóm","Shandon 325","Karbantartás",1,null,0,1.27,0,0]
[11,59431,"Rotációs mikrotóm","Shandon 325","Karbantartás",1,null,0,1.27,0,0]
[12,50634,"Rotációs mikrotóm","Shandon 325","Karbantartás",1,null,0,1.27,0,0]
[13,50635,"Rotációs mikrotóm","Shandon 325","Karbantartás",1,null,0,1.27,0,0]